Cogmind - Beta 17 @@@ ROGUE MODE // 2026.08.02 @ 21:29:56 Player: puppuppit Result: Core destroyed Performance ------------- Evolutions (0) 0 Regions Visited (4) 800 Robots Destroyed (57) 285 Value Destroyed (884) 884 Prototype IDs (0) 0 Alien Tech Used (0) 0 Bonus (101) 101 TOTAL SCORE: 2070 Bonus ------- Follower Combat Kills 101 Cogmind --------- Core Integrity 0/250 Matter 294/300 Energy 100/100 System Corruption 0% Temperature Cool (0) Movement Rolling (105) Ox1 Location -9/Mines Parts ------- > --- POWER (1) -------- (None) > --- PROPULSION (2) --- Wheel Compact Wheel > --- UTILITY (2) ------ High-capacity Storage Unit Weapon Cycler > --- WEAPON (2) ------- Light Assault Rifle Grenade Launcher > --- INVENTORY (20) --- Reinforced Deuterium Engine Reinforced Deuterium Engine Light Fission Core Wheel Compact Wheel Improved Heat Sink Medium Matter Pod (100) Large Matter Pod (150) Large Matter Pod (150) Large Matter Pod (150) Improved Medium Armor Plating Medium Reactive Plating Light Assault Rifle Light Assault Rifle Light Assault Rifle Light Assault Rifle Light Assault Rifle Light Assault Rifle Light Assault Rifle Light Assault Rifle Peak State ------------ > --- POWER ------------ Light Nuclear Core > --- PROPULSION ------- Wheel Compact Wheel > --- UTILITY ---------- High-capacity Storage Unit Weapon Cycler > --- WEAPON ----------- Light Assault Rifle Light Assault Rifle > --- INVENTORY -------- Reinforced Deuterium Engine Reinforced Deuterium Engine Light Fission Core Wheel Compact Wheel Improved Heat Sink Medium Matter Pod Large Matter Pod Large Matter Pod Large Matter Pod Medium Reactive Plating EM Pulse Gun Light Assault Rifle Light Assault Rifle Light Assault Rifle Light Assault Rifle Light Assault Rifle Light Assault Rifle Light Assault Rifle Grenade Launcher [Rating: 15] Favorites ----------- Power Ion Engine Engine Ion Engine Power Core Light Nuclear Core Propulsion Light Treads Treads Light Treads Wheel Compact Wheel Utility High-capacity Storage Unit Device Improved Terrain Scanner Storage High-capacity Storage Unit Processor Targeting Computer Weapon Light Assault Rifle Energy Gun EM Pulse Gun Ballistic Gun Light Assault Rifle Launcher Grenade Launcher Build | -11 -10 -10 -10 -9 ------- Run | Yrd Mat Min Exi Min Slots Evolved . | . . . . . Power . | . . . . . Propulsion . | . . . . . Utility . | . . . . . Weapon . | . . . . . Parts Attached 23 | 7 9 4 1 2 Power 4 | 1 2 1 . . Engine 3 | 1 2 . . . Core 1 | . . 1 . . Reactor . | . . . . . Propulsion 7 | 2 2 3 . . Treads 3 | 2 1 . . . Leg . | . . . . . Wheel 4 | . 1 3 . . Hover . | . . . . . Flight . | . . . . . Utility 6 | 2 2 . 1 1 Device 3 | 1 . . 1 1 Storage 2 | 1 1 . . . Processor 1 | . 1 . . . Hackware . | . . . . . Protection . | . . . . . Artifact . | . . . . . Weapon 6 | 2 3 . . 1 Energy Gun 1 | 1 . . . . Energy Cannon . | . . . . . Ballistic Gun 4 | 1 3 . . . Ballistic Cannon . | . . . . . Launcher 1 | . . . . 1 Special Weapon . | . . . . . Impact Weapon . | . . . . . Slashing Weapon . | . . . . . Piercing Weapon . | . . . . . Special Melee Weapon . | . . . . . Unidentified Prototypes . | . . . . . Parts Lost 8 | . 4 3 . 1 Power 2 | . 1 . . 1 Propulsion 4 | . 1 3 . . Utility 1 | . 1 . . . Weapon 1 | . 1 . . . Highest Loss Streak 2 | . 2 2 . 1 To Critical Strikes . | . . . . . Average Backups 12 | . 10 14 20 20 Power 1 | . . 1 2 3 Propulsion . | . . . 2 2 Utility 3 | . 3 4 5 5 Weapon 7 | . 6 9 10 9 Tool/Special . | . . . . . Unused Backups 22 | . . . 3 19 Power 3 | . . . . 3 Propulsion 3 | . . . 1 2 Utility 9 | . . . 2 7 Weapon 7 | . . . . 7 Tool/Special . | . . . . . Average Slot Usage (%) 97 | . 98 94 100 99 Engine 10 | . 13 10 . . Core 3 | . . 3 14 13 Treads 17 | . 23 16 . . Wheel 8 | . 3 5 28 28 Device 10 | . 7 14 14 14 Storage 14 | . 14 14 14 14 Processor 3 | . 6 . . . Ballistic Gun 27 | . 26 28 28 27 Peak Build Rating 15 | 9 10 13 14 15 Average Rating 10 | 8 8 10 13 14 On Entrance 9 | . 9 10 13 14 Avg Prop Armor Cover (%) 14 | . 14 . . . Naked Turns . | . . . . . Heaviest Build 48 | 12 48 48 48 48 Greatest Support 40 | 40 40 40 26 26 Greatest Overweight (x) 15 | . 2 15 1 1 Average Overweight (x) 1 | . 1 1 1 1 Largest Inventory Capacity 20 | 8 20 20 20 20 Average Capacity 19 | 7 19 20 20 20 Most Carried 20 | 2 14 20 20 20 Average Carried 12 | . 10 15 19 19 Final Capacity 20 | 8 20 20 20 20 Final Carried 20 | 2 13 20 20 20 Class Distribution -------------------- 52% | Mutant 47% | Scavenger-Mutant Dominant Class ---------------- Mutant | -10/Materials Scavenger-Mutant | -10/Mines Scavenger-Mutant | -10/Exiles Scavenger-Mutant | -9/Mines Resources | -11 -10 -10 -10 -9 ----------- Run | Yrd Mat Min Exi Min Matter Collected 1158 | 294 626 114 10 114 Remotely . | . . . . . Salvage Created 1815 | 248 1024 366 . 177 Parts 104 | 16 54 20 . 14 Haulers Intercepted 2 | . 2 . . . Recyclers Shooed 6 | 1 . 3 . 2 Parts Field Recycled . | . . . . . Retrieved Matter . | . . . . . Parts Self-Destructed . | . . . . . Prevented . | . . . . . Parts Restored . | . . . . . Kills | -11 -10 -10 -10 -9 ------- Run | Yrd Mat Min Exi Min Combat Hostiles Destroyed 30 | . 20 5 . 5 Guns 26 | . 20 5 . 1 AOE 4 | . . . . 4 Classes Destroyed 11 | 3 5 2 . 1 Worker 8 | 2 2 4 . . Builder 1 | . . . . 1 Tunneler 6 | 6 . . . . Hauler 2 | . 2 . . . Recycler 7 | 1 2 3 . 1 Operator 2 | . 2 . . . Watcher 2 | . 2 . . . Swarmer 13 | . 9 1 . 3 Grunt 15 | . 11 2 . 2 Demolisher 1 | . . 1 . . Assembled 1 | . . 1 . . Best Kill Streak 4 | 4 3 3 . 4 Combat Bots Only 3 | . 3 3 . 3 Max Kills in Single Turn 2 | 1 1 1 . 2 Gunslinging . | . . . . . Exploded 2 | . . . . 2 Melee . | . . . . . Uniques/NPCs Destroyed . | . . . . . Combat | -11 -10 -10 -10 -9 -------- Run | Yrd Mat Min Exi Min Hostile Shots Fired 138 | . 96 24 . 18 Missed 32 | . 21 6 . 5 Hits 106 | . 75 18 . 13 Melee 1 | . . . . 1 Projectile 105 | . 75 18 . 12 AOE 1 | . . 1 . . Critical Strikes 1 | . . . . 1 Damage Taken 1176 | . 738 266 . 172 Core 251 | . 143 55 . 53 Absorbed by Shields . | . . . . . Regen/Repaired (Parts) 188 | . 188 . . . Core Remaining (%) 100 | 100 . . . . Volleys Fired 225 | 24 134 40 . 27 Largest 2 | 2 2 2 . 2 Hottest 60 | 60 60 40 . 50 Shots Fired 446 | 48 266 80 . 52 Gun 442 | 48 266 80 . 48 Cannon . | . . . . . Launcher 4 | . . . . 4 Special . | . . . . . Kinetic 411 | 24 259 80 . 48 Thermal . | . . . . . Explosive 4 | . . . . 4 Electromagnetic 31 | 24 7 . . . Robot Hit Streak 23 | 4 23 7 . 10 Robot Miss Streak 5 | 3 5 4 . 2 Penetration Max . | . . . . . Secondary Targets 6 | . 5 1 . . Max Gunslinging Chain 1 | . 1 1 . . Shots Hit Robots 282 | 24 173 49 . 36 Core Hits 119 | 13 62 29 . 15 Critical Kills . | . . . . . Critical Parts Destroyed . | . . . . . Critical Strikes . | . . . . . Melee Attacks . | . . . . . Impact . | . . . . . Slashing . | . . . . . Piercing . | . . . . . Sneak Attacks . | . . . . . Combat Hostiles . | . . . . . Follow-up Attacks . | . . . . . Damage Inflicted 2927 | 302 1563 428 . 634 Guns 2560 | 281 1563 425 . 291 Cannons . | . . . . . Explosions 346 | 21 . . . 325 Melee . | . . . . . Ramming 21 | . . 3 . 18 Kinetic 2282 | 82 1484 425 . 291 Thermal 21 | 21 . . . . Explosive 325 | . . . . 325 Electromagnetic 278 | 199 79 . . . Impact . | . . . . . Slashing . | . . . . . Piercing . | . . . . . Highest Corruption . | . . . . . Average Corruption . | . . . . . Corruption Purged . | . . . . . Corruption Blocked . | . . . . . Overload Shots . | . . . . . Overflow Damage . | . . . . . Projectiles . | . . . . . Explosions . | . . . . . Melee . | . . . . . Knockbacks . | . . . . . Impact . | . . . . . Kinetic . | . . . . . Secondary . | . . . . . Self-Inflicted Damage 16 | . . . . 16 Shots 1 | . . . . 1 Rammed 4 | . . 2 . 2 Targets Rammed 4 | . . 2 . 2 Kicked . | . . . . . Crushed . | . . . . . Highest Temperature 97 | 40 97 28 . 40 Average Temperature 14 | 21 21 7 . 7 Received Heat Transfer 453 | . 273 126 . 54 Siege Activations . | . . . . . Martial Activations . | . . . . . Shielding Activations . | . . . . . Robots Disrupted . | . . . . . Combat Hostiles . | . . . . . Robots Corrupted . | . . . . . Combat Hostiles . | . . . . . Parts Fried . | . . . . . Impact Corruptions . | . . . . . Robots Melted . | . . . . . Combat Hostiles . | . . . . . Parts Melted . | . . . . . Heat Transferred 50 | 50 . . . . Parts Sabotaged . | . . . . . Parts Stolen . | . . . . . Parts Stripped . | . . . . . Power Chain Reactions 1 | 1 . . . . Alert | -11 -10 -10 -10 -9 ------- Run | Yrd Mat Min Exi Min Maximum Alert Level . | . . . . . Low Security (%) 100 | 100 100 100 . 100 Level 1 . | . . . . . Level 2 . | . . . . . Level 3 . | . . . . . Level 4 . | . . . . . Level 5 . | . . . . . High Security . | . . . . . Max Security . | . . . . . Peak Influence 187 | 15 187 80 . 88 Initial 67 | . . 67 . . Average 32 | 2 41 21 . 30 Influence Increases 1136 | 45 658 246 . 187 Destroy 0b10 Robot/C 680 | . 400 160 . 120 Destroy 0b10 Robot/NC 145 | 45 50 35 . 15 Destroy Leader 138 | . 88 30 . 20 Allied During Kill 33 | . . 21 . 12 Successful Hack 30 | . 30 . . . Select Force Hacks 60 | . 60 . . . Destroy Structure 20 | . . . . 20 Lose Combat Pursuer 30 | . 30 . . . Influence Decreases 1125 | 45 485 397 22 176 Entered New Map 128 | . . 106 22 . Time Decay 889 | 45 445 261 . 138 Lost Part 60 | . 40 10 . 10 Lost Ally 48 | . . 20 . 28 Squads Dispatched 5 | . 4 . . 1 Investigation 3 | . 2 . . 1 Extermination . | . . . . . Reinforcement 2 | . 2 . . . Assault . | . . . . . Garrison . | . . . . . Intercept . | . . . . . Searches Triggered . | . . . . . Construction Impeded . | . . . . . Haulers Reinforced . | . . . . . Active Scanning Responses . | . . . . . Cargo Convoy Interrupts . | . . . . . Stealth | -11 -10 -10 -10 -9 --------- Run | Yrd Mat Min Exi Min Distress Signals . | . . . . . Communications Jammed . | . . . . . Distress Signals . | . . . . . Times Spotted 53 | . 37 7 . 9 Peak Tracking Total 3 | . 3 2 . 3 Tactical Retreats 2 | . 2 . . . Traps | -11 -10 -10 -10 -9 ------- Run | Yrd Mat Min Exi Min Traps Triggered . | . . . . . Indirectly . | . . . . . Trap Hack Attempts . | . . . . . Triggered . | . . . . . Disarmed . | . . . . . Reprogrammed 6 | . 6 . . . Reused . | . . . . . Traps Extracted . | . . . . . Installed . | . . . . . Triggered . | . . . . . Machines | -11 -10 -10 -10 -9 ---------- Run | Yrd Mat Min Exi Min Machines Disabled . | . . . . . Max in Single Turn . | . . . . . Machines Repaired . | . . . . . Machines Dismantled . | . . . . . Machines Sabotaged . | . . . . . Overloaded Fab Kills . | . . . . . Hacking | -11 -10 -10 -10 -9 --------- Run | Yrd Mat Min Exi Min Machines Accessed 11 | . 9 . 1 1 Terminals 6 | . 6 . . . Fabricators . | . . . . . Repair Stations 1 | . 1 . . . Recycling Units 2 | . 2 . . . Scanalyzers . | . . . . . Garrison Access . | . . . . . Total Hacks 66 | . 42 . 23 1 Successful 51 | . 27 . 23 1 Failed 14 | . 14 . . . Catastrophic . | . . . . . Database Lockouts 1 | . 1 . . . Manual 26 | . 26 . . . Terminals 23 | . 23 . . . Fabricators . | . . . . . Repair Stations 13 | . 13 . . . Recycling Units 6 | . 6 . . . Scanalyzers . | . . . . . Garrison Access . | . . . . . Terminal Hacks 27 | . 3 . 23 1 Record 23 | . . . 23 . Robot Analysis 2 | . 2 . . . Open Door 1 | . . . . 1 Reprogram Traps 1 | . 1 . . . Fabricator Hacks . | . . . . . Repair Station Hacks 10 | . 10 . . . Scan Component 5 | . 5 . . . Repair 5 | . 5 . . . Recycling Unit Hacks 1 | . 1 . . . Retrieve Components 1 | . 1 . . . Scanalyzer . | . . . . . Garrison Access Hacks . | . . . . . Unauthorized Hacks 13 | . 13 . . . Terminals 9 | . 9 . . . Botnet 4 | . 4 . . . Skim 5 | . 5 . . . Fabricators . | . . . . . Repair Stations . | . . . . . Recycling Units 4 | . 4 . . . Reject 1 | . 1 . . . Recyclers 1 | . 1 . . . Tunnel 2 | . 2 . . . Scanalyzers . | . . . . . Garrison Access . | . . . . . Data Cores Recovered . | . . . . . Used . | . . . . . Hacking Detections 8 | . 8 . . . Full Trace Events . | . . . . . Feedback Events . | . . . . . Feedback Blocked . | . . . . . Robot Schematics Acquired . | . . . . . Robots Built . | . . . . . Authchips . | . . . . . Time . | . . . . . Total Robot Build Rating . | . . . . . Part Schematics Acquired . | . . . . . Parts Built . | . . . . . Authchips . | . . . . . Time . | . . . . . Total Part Build Rating . | . . . . . Part Studies Acquired . | . . . . . Parts Repaired 5 | . 5 . . . Time 130 | . 130 . . . Parts Recycled . | . . . . . Recycled Matter . | . . . . . Retrieved Matter . | . . . . . Retrieved Components 5 | . 5 . . . Parts Scanalyzed . | . . . . . Part Schematics Acquired . | . . . . . Parts Damaged . | . . . . . Bothacking | -11 -10 -10 -10 -9 ------------ Run | Yrd Mat Min Exi Min Used RIF Installer . | . . . . . Robots Hacked . | . . . . . Non-combat . | . . . . . Combat . | . . . . . Robot Hacks Applied . | . . . . . Relay Couplers Released . | . . . . . Fabnet Peak Effective % . | . . . . . Robots Rewired . | . . . . . Allies Hacked . | . . . . . Hacks Repelled . | . . . . . Allies | -11 -10 -10 -10 -9 -------- Run | Yrd Mat Min Exi Min Total Allies 3 | . . 3 . . Largest Group 3 | . . 3 2 2 Highest-Rated Group 40 | . . 40 24 24 Highest-Rated Ally 16 | . . 16 16 16 Total Orders . | . . . . . Ally Attacks 36 | . . 23 . 13 Total Damage 305 | . . 220 . 85 Kills 6 | . . 4 . 2 Allies Corrupted . | . . . . . Allies Melted . | . . . . . Intel | -11 -10 -10 -10 -9 ------- Run | Yrd Mat Min Exi Min Active Infowar (turns) 3257 | 211 1192 1215 286 353 Terrain 3257 | 211 1192 1215 286 353 Robot Analysis Total 2 | . 2 . . . Derelict Logs Recovered 2 | . . . . 2 Drone Launches . | . . . . . Drone Recoveries . | . . . . . Exploration | -11 -10 -10 -10 -9 ------------- Run | Yrd Mat Min Exi Min Turns Passed 4513 | 248 2363 1215 286 401 Spaces Moved 2097 | 92 938 501 259 307 Core 16 | 2 . 14 . . Treads 913 | 90 572 251 . . Legs . | . . . . . Wheels 1168 | . 366 236 259 307 Hover . | . . . . . Flight . | . . . . . Fastest Speed 50 | 50 130 105 105 105 Average Speed 170 | 157 195 197 105 105 Slowest Speed 800 | 160 320 800 105 105 Overloaded Moves . | . . . . . Propulsion Burnouts . | . . . . . Robots Hopped . | . . . . . Potential Cave-ins . | . . . . . Cave-ins Triggered . | . . . . . Exploration Rate (%) 62 | 3 95 96 60 56 Regions Visited 4 Branch Regions 3 Pre-discovered Areas 4 | . 3 . 1 . Known Exits Taken 2 | . 1 1 . . Unknown Exits Taken 2 | 1 . . 1 . Scrap Searched 2 | . . 1 . 1 Spaces Dug . | . . . . . Terrain Destroyed 27 | 4 . . . 23 Melee . | . . . . . Projectile . | . . . . . AOE 27 | 4 . . . 23 Terrain Rammed . | . . . . . Walls Destroyed . | . . . . . Machines Disabled . | . . . . . Actions | -11 -10 -10 -10 -9 --------- Run | Yrd Mat Min Exi Min Total 2666 | 148 1237 655 282 344 Wait 271 | 24 138 103 6 . Move 2093 | 91 937 500 258 307 Hop . | . . . . . Pick Up 28 | 2 10 6 8 2 Fast Attach 20 | 7 9 3 . 1 Attach 2 | . 2 . . . Detach 2 | . 2 . . . Swap 8 | . 3 1 1 3 Drop 14 | . 2 . 9 3 Fire 225 | 24 134 40 . 27 Melee . | . . . . . Ram 1 | . . . . 1 Kick . | . . . . . Crush 2 | . . 2 . . Escape Stasis . | . . . . . Rewire . | . . . . . Trap . | . . . . . Miscellaneous . | . . . . . Route ------- -11/Scrapyard -10/Materials (discovered 5 exits: *Mat x3 / *Min / Sub) -10/Mines (discovered 4 exits: *Mat x2 / *Exi / Sub) -10/Exiles -9/Mines (discovered 1 exit: [*Mat]) History --------- Turn | Location | Event 23 | -11/Scrapyard | Discovered new exit (range 15) 249 | -11/Scrapyard | Entered Materials 307 | -10/Materials | Build established: Mutant 562 | -10/Materials | Discovered new exit (range 13) 1203 | -10/Materials | Discovered new exit (range 15) 1307 | -10/Materials | Learned location of Storage (-7) 1340 | -10/Materials | Identified exit to Subcaves 1361 | -10/Materials | Learned location of 2 exits from Mines 1371 | -10/Materials | Identified exit to Materials 1371 | -10/Materials | Identified exit to Mines 1373 | -10/Materials | Learned Storage interactive machine intel 1379 | -10/Materials | Learned Storage trap positions 1395 | -10/Materials | Loaded intel: 16 trap records 1681 | -10/Materials | Central database locked down 1916 | -10/Materials | Repaired Lgt. Treads 1943 | -10/Materials | Repaired Lgt. Treads 1971 | -10/Materials | Repaired Lgt. Assault Rifle 1998 | -10/Materials | Repaired Lgt. Assault Rifle 2026 | -10/Materials | Repaired EM Pulse Gun 2433 | -10/Materials | Core integrity fell below 50% 2494 | -10/Materials | Build established: Scavenger-Mutant 2612 | -10/Materials | Entered Mines 2613 | -10/Mines | Assembled infested the area 2613 | -10/Mines | YI-UF0 nonchalantly dropped a Grenade Launcher on the ground 2614 | -10/Mines | Identified exit to Exiles 2618 | -10/Mines | Assisted by a Guerilla fighting off Assembled 2642 | -10/Mines | Deemed a non-threat by the Exiles lab entrance 3272 | -10/Mines | Assisted by bots powering up and referring to "LRC-V3" 3827 | -10/Mines | Entered Exiles 3827 | -10/Exiles | Accompanied by 2 allies 3857 | -10/Exiles | Met 8R-AWN 3874 | -10/Exiles | Met EX-HEX 3920 | -10/Exiles | Met EX-DEC 4008 | -10/Exiles | Learned location of Zion (-6) 4046 | -10/Exiles | Met EX-BIN 4093 | -10/Exiles | Discovered new exit (range 14) 4113 | -10/Exiles | Entered Mines 4113 | -9/Mines | Accompanied by 2 allies 4115 | -9/Mines | Discovered new exit (range 14) 4218 | -9/Mines | Learned Materials interactive machine intel 4238 | -9/Mines | Met a Derelict bent on vengeance 4299 | -9/Mines | Learned Materials stockpile data 4383 | -9/Mines | Core integrity fell below 20% 4450 | -9/Mines | Met a Derelict shopkeep closing up shop 4514 | -9/Mines | Core destroyed Last Messages --------------- 04454_ ZH-U9U(g): "Take whatever you can and run for it!" 04457_ K-01 Serf collects debris. 04461_ Dropped Lgt. Cannon. 04462_ Acquired Med. Reactive Plating. 04466_ K-01 Serf collects debris. 04466_ Dropped Imp. Terrain Scanner. 04466_ Acquired Weapon Cycler. 04472_ Dropped EM Pulse Gun. 04473_ Acquired Imp. Medium Armor Plating. 04479_ G-34 Mercenary destroyed. 04485_ R-06 Scavenger collects Heat Sink. 04488_ K-01 Serf destroyed. 04496_ Mercenary 1a destroyed. 04499_ Trooper 1a destroyed. 04506_ G-34 Mercenary destroyed. 04508_ Lgt. Nuclear Core destroyed. 04509_ Slammed into K-01 Serf. 04512_ Acquired 34 matter. 04514_ Slammed into U-05 Engineer. Map ----- +----------------------------------------------------+ | | | | | ????????????????????????????????????????????? | | ????????????????????????????????????????????? | | ????????????????????????????????????????????? | | ????????????????????????????????????????????? | | ????????????????????????????????????????????? | | ????????????????????????????????????????????? | | ?????????? ?????????????????????????????? | | ????????? #???????????????????????????? | | ????????? #??????????????#???????????? | | ???????? ##?????????????????????????? | | ??????? ##???????????????????#????? | | ???????? ##??#??#?????????????#???? | | ???????? ???? #????????????????? | | ????????? ?????? ????????????????? | | ?????????? ??????? ????????????????? | | ??????????# ???????? #?#???? ????????? | | ??????????# ????????? ???????? ??????? | | ??????????# #?????????? ???????????????? | | ?????####?# #####??????? #?####??????????? | | ?????#"[### ####???# #?## ?????????? | | ? ???#" !!# !%[ ##????# #??# #????#?????? | | ?????#"! [%= g ###??# ##?# #???#??????? | | ?????#" ] ! #### #### #??????????? | | ?????#"= !#X % r @u% % #????????#?? | | ?????#"]### r l######## #?#????#???? | | ?????####?### k ##???#??# #???#??????? | | ??#?????????# ####??????# #???#??????? | | ????????????#% ###????#???# #??????????? | | ?????????? ######???????# #???#??????? | | ???????? ##?## ##?????# #????????#?? | | ??????? ###### ##??? #????## #??????????? | | ?? ??? ??????###???? ##??### #??????????? | | ?????????????????????# ##?##?# #???#???#??? | | ??? ???????????????#?# ##???## ##??????#??? | | ????????#???????????## ##???# #??????????? | | ????????????????????# ##?## #??????????? | | ???????###?#????????# #?## #????#?#???? | | ??????## #?????????# #?## #??????????? | | ??????# ##????????# #### #???????#??? | | ??????# ##???????# ### #??????????? | | ??????# #??????## # #??????????? | | ???????# ##??????# ## ##???#?##??? | | ?????????# ######## ### = = #?????????? | | ########### ####[ *% #???????#?? | | ## ## % #?????????# | | ############ # ## #?????#???? | | ### ######## ###?????#???#### # #????????#? | | ??# #??????####?#?#??????????### ##????????? | +----------------------------------------------------+ Best States ------------- Heat Dissipation 25 Energy Generation 14 Energy Capacity 250 Matter Stores 300 Matter Capacity 300 Sight Range 16 Terrain Scan Range 16 Terrain Scan Density 10 Weapon Cycling 15 Evasion (%) 40 Targeting Accuracy 5 Recoil Reduction 2 Item Schematics ----------------- None Robot Schematics ------------------ None Fabricated ------------ Nothing Repaired ---------- Lgt. Treads | 56% | -10/Materials Lgt. Treads | 62% | -10/Materials Lgt. Assault Rifle | 55% | -10/Materials Lgt. Assault Rifle | 68% | -10/Materials EM Pulse Gun | 71% | -10/Materials Studied --------- None Alien Tech Used ----------------- None Achievements -------------- None Challenges ------------ None Game ------ Seed BiometalBlanketCompactor Manual? 0 Play Time 00:17:46 Cumulative 738.8 hours Start 2026.08.02 @ 21:14:13 End 2026.08.02 @ 21:29:56 Sessions 1 Manual Loads 0 Difficulty Rogue Special Mode None Game No. 365 Rogue 365 Adventurer 0 Explorer 0 Win Type - Total 7 Types 3/0/2/1/0/0/0/0/0/1 Lore% 87 Gallery% 76 Achievement% 60 Wizard Run 0 Options --------- Layout 2 ASCII 0 Keyboard 1 Movement Vi Keybinds 0 Fullscreen 1 Font 16/Proggy Map View 55x47 Zoom Use 0% Tactical HUD 1 Map Filters NONE Filters NONE Steam 0 RUN: 62917871-9028-444e-b53f-c9aab646c1ab